Cogmind - Beta 16 @@@ ROGUE MODE // 2025.10.29 @ 17:11:14 Player: f3-rnm Result: Destroyed by Y-45 Defender with Beam Rifle Performance ------------- Evolutions (0) 0 Regions Visited (4) 800 Robots Destroyed (18) 90 Value Destroyed (452) 452 Prototype IDs (0) 0 Alien Tech Used (0) 0 Bonus (0) 0 TOTAL SCORE: 1342 Bonus ------- None Cogmind --------- Core Integrity 0/250 Matter 43/300 Energy 250/250 System Corruption 0% Temperature Cool (33) Movement Rolling (115) Ox1 Location -9/Recycling Parts ------- > --- POWER (1) -------- Ion Engine > --- PROPULSION (2) --- Compact Wheel > --- UTILITY (2) ------ Large Storage Unit > --- WEAPON (2) ------- Light Assault Rifle Light Cannon > --- INVENTORY (15) --- Ion Engine Light Nuclear Core Light Nuclear Core Heat Sink Improved Heat Sink Large Storage Unit Medium Matter Pod (0) Experimental Sensor Array EM Pulse Gun Rocket Launcher Multitool Signal Generator Peak State ------------ > --- POWER ------------ Ion Engine > --- PROPULSION ------- Light Treads Light Treads > --- UTILITY ---------- Heat Sink Large Storage Unit > --- WEAPON ----------- Light Cannon Light Cannon > --- INVENTORY -------- Ion Engine Light Nuclear Core Light Nuclear Core Compact Wheel Heat Sink Improved Heat Sink Large Storage Unit Medium Matter Pod Experimental Sensor Array EM Pulse Gun Light Assault Rifle Light Cannon Signal Generator [Rating: 10] Favorites ----------- Power Ion Engine Engine Ion Engine Propulsion Light Treads Treads Light Treads Wheel Compact Wheel Utility Large Storage Unit Device Heat Sink Storage Large Storage Unit Weapon Light Cannon Ballistic Gun Light Assault Rifle Ballistic Cannon Light Cannon Launcher Rocket Launcher Build | -11 -10 -10 -10 -9 ------- Run | Yrd Mat Min Sub Rec Slots Evolved . | . . . . . Power . | . . . . . Propulsion . | . . . . . Utility . | . . . . . Weapon . | . . . . . Parts Attached 15 | 6 5 . 4 . Power 2 | 1 1 . . . Engine 2 | 1 1 . . . Core . | . . . . . Reactor . | . . . . . Propulsion 3 | 2 . . 1 . Treads 2 | 2 . . . . Leg . | . . . . . Wheel 1 | . . . 1 . Hover . | . . . . . Flight . | . . . . . Utility 3 | 1 2 . . . Device 1 | . 1 . . . Storage 2 | 1 1 . . . Processor . | . . . . . Hackware . | . . . . . Protection . | . . . . . Artifact . | . . . . . Weapon 7 | 2 2 . 3 . Energy Gun . | . . . . . Energy Cannon . | . . . . . Ballistic Gun 3 | 2 . . 1 . Ballistic Cannon 3 | . 2 . 1 . Launcher 1 | . . . 1 . Special Weapon . | . . . . . Impact Weapon . | . . . . . Slashing Weapon . | . . . . . Piercing Weapon . | . . . . . Special Melee Weapon . | . . . . . Unidentified Prototypes . | . . . . . Parts Lost 6 | . 1 . 5 . Power 1 | . 1 . . . Propulsion 2 | . . . 2 . Utility 1 | . . . 1 . Weapon 2 | . . . 2 . Highest Loss Streak 3 | . 1 . 3 . To Critical Strikes 2 | . . . 2 . Average Backups 8 | 1 6 10 12 11 Power 2 | . 1 2 3 3 Propulsion . | . 1 1 . . Utility 3 | . 1 4 5 5 Weapon 2 | . 2 3 3 2 Tool/Special . | . . . . . Unused Backups 11 | 1 . . . 10 Power 3 | . . . . 3 Propulsion 1 | 1 . . . . Utility 5 | . . . . 5 Weapon 1 | . . . . 1 Tool/Special 1 | . . . . 1 Average Slot Usage (%) 91 | . 90 100 85 71 Engine 13 | . 13 14 14 14 Treads 23 | . 28 28 14 . Wheel 3 | . . . 10 14 Device 7 | . 4 14 3 . Storage 14 | . 14 14 14 14 Ballistic Gun 6 | . 14 . 2 14 Ballistic Cannon 21 | . 14 28 25 14 Peak Build Rating 10 | 6 8 10 10 8 Average Rating 7 | 4 6 9 9 8 On Entrance 6 | . 6 8 10 8 Avg Prop Armor Cover (%) 11 | . . . 11 . Naked Turns . | . . . . . Heaviest Build 32 | 11 32 32 32 29 Greatest Support 40 | 40 40 40 40 16 Greatest Overweight (x) 1 | 1 . . 1 1 Average Overweight (x) . | . . . . 1 Largest Inventory Capacity 15 | 8 15 15 15 15 Average Capacity 12 | 7 9 15 15 15 Most Carried 15 | 4 9 14 15 12 Average Carried 9 | 1 6 11 13 12 Final Capacity 15 | 8 15 15 15 15 Final Carried 14 | 3 9 14 12 12 Class Distribution -------------------- 100% | Mutant Dominant Class ---------------- Mutant | -10/Materials Mutant | -10/Mines Mutant | -10/Subcaves Mutant | -9/Recycling Resources | -11 -10 -10 -10 -9 ----------- Run | Yrd Mat Min Sub Rec Matter Collected 566 | 183 151 110 122 . Remotely . | . . . . . Salvage Created 375 | . 159 36 142 38 Parts 29 | . 16 3 6 4 Haulers Intercepted . | . . . . . Recyclers Shooed . | . . . . . Parts Field Recycled . | . . . . . Retrieved Matter . | . . . . . Parts Self-Destructed 6 | . . . 6 . Prevented . | . . . . . Parts Restored . | . . . . . Kills | -11 -10 -10 -10 -9 ------- Run | Yrd Mat Min Sub Rec Combat Hostiles Destroyed 15 | . 8 1 5 1 Guns 2 | . 2 . . . Cannons 13 | . 6 1 5 1 Classes Destroyed 7 | . 3 . 3 1 Worker 2 | . 2 . . . Turret 1 | . . . 1 . Swarmer 6 | . 6 . . . Grunt 3 | . 2 1 . . Sentry 1 | . . . . 1 Artisan 1 | . . . 1 . Subdweller 5 | . . . 5 . Best Kill Streak 3 | . 3 1 1 1 Combat Bots Only 3 | . 3 1 1 1 Max Kills in Single Turn 1 | . 1 1 1 1 Gunslinging . | . . . . . Exploded . | . . . . . Melee . | . . . . . Uniques/NPCs Destroyed . | . . . . . Combat | -11 -10 -10 -10 -9 -------- Run | Yrd Mat Min Sub Rec Hostile Shots Fired 98 | . 39 3 46 10 Missed 27 | . 10 2 11 4 Hits 71 | . 29 1 35 6 Projectile 71 | . 29 1 35 6 Critical Strikes 3 | . 1 . 2 . Damage Taken 1123 | . 319 14 705 85 Core 252 | . 41 . 170 41 Absorbed by Shields . | . . . . . Core Remaining (%) 100 | 100 . . . . Volleys Fired 73 | . 28 3 38 4 Largest 2 | . 2 2 2 2 Hottest 60 | . 60 60 60 50 Shots Fired 143 | . 56 6 73 8 Gun 36 | . 22 . 10 4 Cannon 106 | . 34 6 62 4 Launcher 1 | . . . 1 . Special . | . . . . . Kinetic 142 | . 56 6 72 8 Thermal . | . . . . . Explosive 1 | . . . 1 . Electromagnetic . | . . . . . Robot Hit Streak 16 | . 16 2 14 11 Robot Miss Streak 3 | . 3 2 3 . Penetration Max . | . . . . . Secondary Targets . | . . . . . Shots Hit Robots 86 | . 29 3 48 6 Core Hits 33 | . 15 2 13 3 Critical Kills . | . . . . . Critical Parts Destroyed . | . . . . . Critical Strikes 1 | . . . 1 . Blast 1 | . . . 1 . Melee Attacks . | . . . . . Impact . | . . . . . Slashing . | . . . . . Piercing . | . . . . . Sneak Attacks . | . . . . . Combat Hostiles . | . . . . . Follow-up Attacks . | . . . . . Damage Inflicted 1338 | . 429 53 783 73 Guns 225 | . 172 . 33 20 Cannons 1080 | . 257 53 717 53 Explosions 33 | . . . 33 . Melee . | . . . . . Ramming . | . . . . . Kinetic 1305 | . 429 53 750 73 Thermal . | . . . . . Explosive 33 | . . . 33 . Electromagnetic . | . . . . . Impact . | . . . . . Slashing . | . . . . . Piercing . | . . . . . Highest Corruption . | . . . . . Average Corruption . | . . . . . Corruption Purged . | . . . . . Corruption Blocked . | . . . . . Overload Shots . | . . . . . Overflow Damage . | . . . . . Projectiles . | . . . . . Explosions . | . . . . . Melee . | . . . . . Knockbacks 5 | . 2 . 3 . Impact . | . . . . . Kinetic 5 | . 2 . 3 . Secondary . | . . . . . Self-Inflicted Damage . | . . . . . Shots . | . . . . . Rammed . | . . . . . Targets Rammed . | . . . . . Kicked . | . . . . . Crushed . | . . . . . Highest Temperature 24 | . 18 . . 24 Average Temperature 10 | . 9 . . 11 Received Heat Transfer 369 | . 141 9 192 27 Siege Activations . | . . . . . Martial Activations . | . . . . . Shielding Activations . | . . . . . Robots Disrupted . | . . . . . Combat Hostiles . | . . . . . Robots Corrupted . | . . . . . Combat Hostiles . | . . . . . Parts Fried . | . . . . . Impact Corruptions . | . . . . . Robots Melted . | . . . . . Combat Hostiles . | . . . . . Parts Melted . | . . . . . Heat Transferred . | . . . . . Parts Sabotaged . | . . . . . Parts Stolen . | . . . . . Parts Stripped . | . . . . . Power Chain Reactions . | . . . . . Alert | -11 -10 -10 -10 -9 ------- Run | Yrd Mat Min Sub Rec Maximum Alert Level . | . . . . . Low Security (%) 100 | 100 100 100 . 100 Level 1 . | . . . . . Level 2 . | . . . . . Level 3 . | . . . . . Level 4 . | . . . . . Level 5 . | . . . . . High Security . | . . . . . Max Security . | . . . . . Peak Influence 109 | . 109 30 . 20 Initial 30 | . . 30 . . Average 11 | . 20 2 . . Influence Increases 278 | . 218 20 20 20 Destroy 0b10 Robot/C 220 | . 160 20 20 20 Destroy 0b10 Robot/NC 10 | . 10 . . . Destroy Leader 30 | . 30 . . . Destroy Structure 3 | . 3 . . . Lose Combat Pursuer 15 | . 15 . . . Influence Decreases 258 | . 139 99 20 . Entered New Map 49 | . . 49 . . Time Decay 199 | . 129 50 20 . Lost Part 10 | . 10 . . . Squads Dispatched 1 | . 1 . . . Investigation . | . . . . . Extermination . | . . . . . Reinforcement 1 | . 1 . . . Assault . | . . . . . Garrison . | . . . . . Intercept . | . . . . . Searches Triggered . | . . . . . Construction Impeded . | . . . . . Haulers Reinforced . | . . . . . Active Scanning Responses . | . . . . . Cargo Convoy Interrupts . | . . . . . Stealth | -11 -10 -10 -10 -9 --------- Run | Yrd Mat Min Sub Rec Distress Signals 1 | . 1 . . . Communications Jammed . | . . . . . Distress Signals . | . . . . . Times Spotted 26 | . 15 2 7 2 Peak Tracking Total 3 | . 3 2 2 2 Tactical Retreats 1 | . 1 . . . Traps | -11 -10 -10 -10 -9 ------- Run | Yrd Mat Min Sub Rec Traps Triggered . | . . . . . Indirectly . | . . . . . Trap Hack Attempts . | . . . . . Triggered . | . . . . . Disarmed . | . . . . . Reprogrammed . | . . . . . Reused . | . . . . . Traps Extracted . | . . . . . Installed . | . . . . . Triggered . | . . . . . Machines | -11 -10 -10 -10 -9 ---------- Run | Yrd Mat Min Sub Rec Machines Disabled 1 | . . . 1 . Max in Single Turn 1 | . . . 1 . Machines Repaired . | . . . . . Machines Dismantled . | . . . . . Machines Sabotaged . | . . . . . Overloaded Fab Kills . | . . . . . Hacking | -11 -10 -10 -10 -9 --------- Run | Yrd Mat Min Sub Rec Machines Accessed . | . . . . . Terminals . | . . . . . Fabricators . | . . . . . Repair Stations . | . . . . . Recycling Units . | . . . . . Scanalyzers . | . . . . . Garrison Access . | . . . . . Total Hacks . | . . . . . Successful . | . . . . . Failed . | . . . . . Catastrophic . | . . . . . Database Lockouts . | . . . . . Manual . | . . . . . Terminals . | . . . . . Fabricators . | . . . . . Repair Stations . | . . . . . Recycling Units . | . . . . . Scanalyzers . | . . . . . Garrison Access . | . . . . . Terminal Hacks . | . . . . . Fabricator Hacks . | . . . . . Repair Station Hacks . | . . . . . Recycling Unit Hacks . | . . . . . Scanalyzer . | . . . . . Garrison Access Hacks . | . . . . . Unauthorized Hacks . | . . . . . Terminals . | . . . . . Fabricators . | . . . . . Repair Stations . | . . . . . Recycling Units . | . . . . . Scanalyzers . | . . . . . Garrison Access . | . . . . . Data Cores Recovered . | . . . . . Used . | . . . . . Hacking Detections . | . . . . . Full Trace Events . | . . . . . Feedback Events . | . . . . . Feedback Blocked . | . . . . . Robot Schematics Acquired . | . . . . . Robots Built . | . . . . . Authchips . | . . . . . Time . | . . . . . Total Robot Build Rating . | . . . . . Part Schematics Acquired . | . . . . . Parts Built . | . . . . . Authchips . | . . . . . Time . | . . . . . Total Part Build Rating . | . . . . . Part Studies Acquired . | . . . . . Parts Repaired . | . . . . . Time . | . . . . . Parts Recycled . | . . . . . Recycled Matter . | . . . . . Retrieved Matter . | . . . . . Retrieved Components . | . . . . . Parts Scanalyzed . | . . . . . Part Schematics Acquired . | . . . . . Parts Damaged . | . . . . . Bothacking | -11 -10 -10 -10 -9 ------------ Run | Yrd Mat Min Sub Rec Used RIF Installer . | . . . . . Robots Hacked . | . . . . . Non-combat . | . . . . . Combat . | . . . . . Robot Hacks Applied . | . . . . . Relay Couplers Released . | . . . . . Fabnet Peak Effective % . | . . . . . Robots Rewired . | . . . . . Allies Hacked . | . . . . . Hacks Repelled . | . . . . . Allies | -11 -10 -10 -10 -9 -------- Run | Yrd Mat Min Sub Rec Total Allies . | . . . . . Largest Group . | . . . . . Highest-Rated Group . | . . . . . Highest-Rated Ally . | . . . . . Total Orders . | . . . . . Ally Attacks . | . . . . . Total Damage . | . . . . . Kills . | . . . . . Allies Corrupted . | . . . . . Allies Melted . | . . . . . Intel | -11 -10 -10 -10 -9 ------- Run | Yrd Mat Min Sub Rec Active Infowar (turns) . | . . . . . Robot Analysis Total . | . . . . . Derelict Logs Recovered 3 | . . 2 1 . Drone Launches . | . . . . . Drone Recoveries . | . . . . . Exploration | -11 -10 -10 -10 -9 ------------- Run | Yrd Mat Min Sub Rec Turns Passed 2341 | 129 902 704 553 53 Spaces Moved 1375 | 75 504 432 341 23 Core 4 | 4 . . . . Treads 1068 | 71 504 432 61 . Legs . | . . . . . Wheels 303 | . . . 280 23 Hover . | . . . . . Flight . | . . . . . Fastest Speed 50 | 50 160 160 115 115 Average Speed 149 | 156 160 160 123 115 Slowest Speed 160 | 160 160 160 160 115 Overloaded Moves . | . . . . . Propulsion Burnouts . | . . . . . Robots Hopped . | . . . . . Potential Cave-ins . | . . . . . Cave-ins Triggered . | . . . . . Exploration Rate (%) 38 | 7 71 86 21 6 Regions Visited 4 Branch Regions 3 Pre-discovered Areas . | . . . . . Known Exits Taken 1 | . . . 1 . Unknown Exits Taken 3 | 1 1 1 . . Scrap Searched 1 | . . 1 . . Spaces Dug . | . . . . . Terrain Destroyed 5 | . . . 5 . Melee . | . . . . . Projectile . | . . . . . AOE 5 | . . . 5 . Terrain Rammed . | . . . . . Walls Destroyed . | . . . . . Machines Disabled . | . . . . . Actions | -11 -10 -10 -10 -9 --------- Run | Yrd Mat Min Sub Rec Total 1516 | 85 546 439 402 44 Wait 35 | . . . 18 17 Move 1371 | 74 503 431 340 23 Hop . | . . . . . Pick Up 17 | 4 7 5 1 . Fast Attach 9 | 6 3 . . . Attach 4 | . 1 . 3 . Detach . | . . . . . Swap 3 | . 1 . 2 . Drop 4 | 1 3 . . . Fire 73 | . 28 3 38 4 Melee . | . . . . . Ram . | . . . . . Kick . | . . . . . Crush . | . . . . . Escape Stasis . | . . . . . Rewire . | . . . . . Trap . | . . . . . Miscellaneous . | . . . . . Route ------- -11/Scrapyard -10/Materials (discovered 4 exits: [*Mat x2] / [*Min x2]) -10/Mines (discovered 3 exits: [*Mat x2] / [*Sub]) -10/Subcaves -9/Recycling History --------- Turn | Location | Event 21 | -11/Scrapyard | Discovered new exit (range 16) 130 | -11/Scrapyard | Entered Materials 269 | -10/Materials | Discovered new exit (range 13) 302 | -10/Materials | Build established: Mutant 443 | -10/Materials | Discovered new exit (range 16) 601 | -10/Materials | Discovered new exit (range 12) 796 | -10/Materials | Discovered new exit (range 15) 1032 | -10/Materials | Entered Mines 1033 | -10/Mines | Met a Derelict testing a Signal Generator 1037 | -10/Mines | Found Signal Generator 1366 | -10/Mines | Found a damaged Exp. Sensor Array with a note attached 1372 | -10/Mines | Found Prototype Device 1389 | -10/Mines | Learned Materials stockpile data 1556 | -10/Mines | Discovered new exit (range 10) 1585 | -10/Mines | Received a Rocket Launcher from a helpful Derelict 1605 | -10/Mines | Discovered new exit (range 8) 1637 | -10/Mines | Discovered new exit (range 5) 1736 | -10/Mines | Entered Subcaves 1737 | -10/Subcaves | Approached by a straggling Scientist 1737 | -10/Subcaves | Identified exit to Recycling 1900 | -10/Subcaves | Lost 3 parts (1n1u1w) 1987 | -10/Subcaves | Core integrity fell below 50% 2084 | -10/Subcaves | Learned location of 1 exit from Materials 2090 | -10/Subcaves | A swath of the cavern ceiling suddenly collapsed 2180 | -10/Subcaves | Ambushed by angry Subdweller bent on revenge 2210 | -10/Subcaves | Core integrity fell below 20% 2289 | -10/Subcaves | Entered Recycling 2342 | -9/Recycling | Destroyed by Y-45 Defender with Beam Rifle Last Messages --------------- 02180_ 1C-WOP(R) Sub. Power Source blasted off. 02181_ Critical hit (Destroy). 02181_ Lgt. Cannon destroyed. 02187_ Critical hit (Destroy). 02187_ Lgt. Treads destroyed. 02192_ 1C-WOP(R) knocked back. MO-68X(c): "I think it's somewhere northwest of here" 02204_ The unstable cave ceiling collapses. 02211_ 1C-WOP(R) destroyed. 02233_ Acquired 4 matter. 02236_ Subatomizers dissect the Sub. Optics, destroying it. MO-68X(c): "I think it's somewhere northwest of here" 02262_ G0-URL(O) collects matter. 02280_ G0-URL(O) puts together Mak. Thermal Plating. 02281_ Acquired 11 matter. 02282_ G0-URL(O) collects matter. LOCATION=RECYCLING GOAL=ESCAPE 02308_ Y-45 Defender springs to life. 02341_ Y-45 Defender destroyed. Map ----- +----------------------------------------------------+ | ?????????????????????????????????????????????????? | | ?????????????????????????????????????????????????? | | ?????????????????????????????????????????????????? | | ?????????????????????????????????????????????????? | | ?????????????????????????????????????????????????? | | ?????????????????????????????????????????????????? | | ?????????????????????????????????????????????????? | | ?????????????????????????????????????????????????? | | ?????????????????????????????????????????????????? | | ?????????????????????????????????????????????????? | | ?????????????????????????????????????????????????? | | ?????????????????????????????????????????????????? | | ?????????????????????????????????????????????????? | | ?????????????????????????????????????????????????? | | ?????????????????????????????????????????????????? | | ?????????????????????????????????????????????????? | | ?????????????????????????????????????????????????? | | ?????????????????????????????????????????????????? | | ?????????????????????????????????????????????????? | | ?????????????????????????????????????????????????? | | ??????????????????????????######?????????????????? | | ??????????????????????????# #?????????????????? | | ????????????????????????### #?????????????????? | | ????????????????????????#!! ###???????????????? | | ????????????????????????#[Y*% ""#???????????????? | | ????????????????????????#@!! Y"#???????????????? | | ????????????????????????###! ""#???????????????? | | ?????????????????????????## ###???????????????? | | ?????????????????????????# #?????????????????? | | ?????????????????????????## +????????????? | | ??????????????????????????# ###????????????? | | ?????????????????????????? #??????????????? | | ?????????????????????????? #??????????????? | | ?????????????????????????? #??????????????? | | ????????????????????????? #??????????????? | | ?????????????????????????## #??????????????? | | ??????????????????????????# #??????????????? | | ??????????????????????????? #??????????????? | | ??????????????????????????? ??????????????? | | ??????????????????????????? ##?????????????? | | ??????????????????????????? #??????????????? | | ??????????????????????????? #??????????????? | | ???????????????????????????### ?????????????????? | | ?????????????????????????????????????????????????? | | ?????????????????????????????????????????????????? | | ?????????????????????????????????????????????????? | | ?????????????????????????????????????????????????? | | ?????????????????????????????????????????????????? | | ?????????????????????????????????????????????????? | | ?????????????????????????????????????????????????? | +----------------------------------------------------+ Best States ------------- Heat Dissipation 35 Energy Generation 10 Energy Capacity 250 Matter Stores 272 Matter Capacity 300 Sight Range 16 Terrain Scan Density 10 Evasion (%) 40 Recoil Reduction 2 Item Schematics ----------------- None Robot Schematics ------------------ None Fabricated ------------ Nothing Repaired ---------- Nothing Studied --------- None Alien Tech Used ----------------- None Achievements -------------- None Challenges ------------ None Game ------ Seed CouplerGrapheneBiocell Manual? 0 Play Time 00:08:50 Cumulative 396.3 hours Start 2025.10.28 @ 21:55:26 End 2025.10.29 @ 17:11:14 Sessions 3 Manual Loads 0 Difficulty Rogue Special Mode None Game No. 359 Rogue 323 Adventurer 36 Explorer 0 Win Type - Total 15 Types 7/0/8/0/0/0/0/0/0/0 Lore% 71 Gallery% 84 Achievement% 54 Wizard Run 0 Options --------- Layout 0 ASCII 0 Keyboard 0 Movement Mouse Keybinds 0 Fullscreen 1 Font 18/SmallcapsGlow Map View 76x50 Zoom Use 0% Tactical HUD 1 Map Filters NONE Filters NONE Steam 1 RUN: a368c152-5efe-4669-be88-2ab33d877149